fUSD/lending_fUSD_20260304
["ID","MTS","AMOUNT","RATE_DAILY","PERIOD"]
[407647364,1772604845444,-250.0,0.00054794,30]
[407647365,1772604845648,507.0,0.000471,31]
[407647366,1772604845766,599.708576,0.00046841,120]
[407647367,1772604845863,599.708576,0.00046841,120]
[407647368,1772604846005,599.708576,0.00046841,120]
[407647383,1772605168106,191.22738379,8.991e-05,2]
[407647391,1772605770169,-500.0,9.003e-05,2]
[407647392,1772605770193,-500.0,9.003e-05,2]
[407647393,1772605770217,-500.0,9.003e-05,2]
[407647394,1772605770239,-500.0,9.003e-05,2]
[407647395,1772605770259,-225.0,9.003e-05,2]
[407647407,1772605831681,-364.72373208,0.00011811,2]
[407647408,1772605831746,-1310.23789955,0.00011811,2]
[407647409,1772605831758,-500.0,0.00011811,2]
[407647410,1772605831769,-861.61290015,0.00011811,2]
[407647427,1772605832011,-1362.4,0.00011811,2]
[407647428,1772605832023,-2775.98709985,0.00011811,2]
[407647429,1772605832033,-247.0,0.00011811,2]
[407647430,1772605832042,-500.0,0.00012005,2]
[407647431,1772605832052,-1551.19018348,0.00012005,2]
[407647432,1772605832061,-2500.0,0.00012005,2]
[407647433,1772605832071,-300.0,0.00012199,2]
[407647434,1772605832081,-288.47,0.000122,2]
[407647435,1772605832089,-574.24401555,0.000122,2]
[407647436,1772605832105,-598.73765731,0.000122,2]
[407647437,1772605832119,-500.0,0.000122,2]
[407647438,1772605832130,-500.0,0.000122,2]
[407647439,1772605832141,-500.0,0.000122,2]
[407647440,1772605832151,-500.0,0.000122,2]
[407647441,1772605832162,-500.0,0.000122,2]
[407647442,1772605832172,-500.0,0.000122,2]
[407647443,1772605832182,-500.0,0.000122,2]
[407647444,1772605832193,-500.0,0.000122,2]
[407647445,1772605832202,-611.35650113,0.000122,2]
[407647446,1772605832213,-500.0,0.000122,2]
[407647447,1772605832225,-500.0,0.000122,2]
[407647448,1772605832236,-500.0,0.000122,2]
[407647449,1772605832247,-500.0,0.000122,2]
[407647450,1772605832257,-284.02510473,0.000122,2]
[407647451,1772605832268,-833.34,0.000122,2]
[407647452,1772605832277,-443.27005909,0.000122,2]
[407647453,1772605832287,-288.47,0.00012474,2]
[407647454,1772605832297,-288.47,0.00012748,2]
[407647455,1772605832307,-250.0,0.00012992,2]
[407647456,1772605832317,-2500.0,0.00012992,2]
[407647457,1772605832329,-500.0,0.00012992,2]
[407647458,1772605832339,-5000.0,0.00012992,2]
[407647459,1772605832349,-288.47,0.00013022,2]
[407647460,1772605832358,-126.82128496,0.00013296,2]
[407647461,1772605832371,-161.68862477,0.00013296,2]
[407647462,1772605832384,-420.0,0.00013389,2]
[407647463,1772605832394,-2500.0,0.00013511,2]
[407647464,1772605832404,-685.11506516,0.00013511,2]
[407647466,1772605837631,-1814.88493484,0.00013511,2]
[407647467,1772605837641,-1261.57024195,0.00013511,2]
[407647468,1772605837650,-507.0,0.000142,2]
[407647469,1772605837660,-283.69,0.00014346,2]
[407647470,1772605837670,-587.0,0.00014695,2]
[407647471,1772605837679,-250.0,0.00015,2]
[407647472,1772605837688,-804.83855077,0.00015217,2]
[407647473,1772605837697,-562.848,0.00015251,2]
[407647474,1772605837707,-3581.63,0.00015335,2]
[407647475,1772605837716,-1278.0,0.00015568,2]
[407647476,1772605837725,-921.0,0.00015568,2]
[407647477,1772605837735,-1212.0,0.00015568,2]
[407647478,1772605837744,-1041.0,0.00015568,2]
[407647479,1772605837754,-2458.0,0.00015568,2]
[407647480,1772605837765,-823.0,0.00016129,2]
[407647481,1772605837775,-494.24,0.00016236,2]
[407647482,1772605837786,-150.0,0.00016509,2]
[407647483,1772605837797,-472.56,0.00016754,2]
[407647484,1772605837810,-500.0,0.000169,2]
[407647485,1772605837821,-315.74082907,0.00016973,2]
[407647486,1772605837830,-300.0,0.00017,2]
[407647487,1772605837840,-186.86,0.000172,2]
[407647488,1772605837850,-1313.2079376,0.00017315,2]
[407647489,1772605837861,-500.0,0.00017452,2]
[407647490,1772605837871,-260.56842108,0.00017482,2]
[407647491,1772605837881,-839.62579625,0.000175,2]
[407647492,1772605837891,-1921.96249253,0.000175,2]
[407647493,1772605837903,-1501.05061091,0.000175,2]
[407647494,1772605837913,-1708.90455096,0.000175,2]
[407647495,1772605837925,-1526.7886,0.00017501,2]
[407647496,1772605837936,-21364.178,0.00017501,2]
[407647497,1772605837945,-5000.0,0.00017501,2]
[407647498,1772605837955,-2500.0,0.00017501,2]
[407647499,1772605837964,-158.05533605,0.00017523,2]
[407647500,1772605837974,-228.94034936,0.0001754,2]
[407647501,1772605837983,-228.9403493,0.00017591,2]
[407647502,1772605837993,-158.05533605,0.00017598,2]
[407647503,1772605838002,-855.83747665,0.00017601,2]
[407647504,1772605838013,-1766.04567076,0.00017601,2]
[407647505,1772605838025,-1272.92958869,0.00017601,2]
[407647506,1772605838036,-408806.87735573,0.00017601,2]
[407647507,1772605838058,-204800.1958344,0.00017601,2]
[407647508,1772605838070,-606.81999954,0.00017601,2]
[407647531,1772605840468,-2299.1,0.00015568,2]
[407647532,1772605840532,-3687.9,0.00015568,2]
[407647533,1772605840542,-921049.80291248,0.00017601,2]
[407647541,1772605842767,-325.58015431,0.00017601,2]
[407647542,1772605842830,-636.19635077,0.00017601,2]
[407647543,1772605843018,-728.04625164,0.00017601,2]
[407647544,1772605843138,-1071.18168082,0.00017601,2]
[407647545,1772605845546,-14371.4208097,0.00017601,2]
[407647546,1772605845878,-1353.49995,0.00017601,2]
[407647547,1772605845890,-1107.6134341,0.00017601,2]
[407647560,1772606953142,-245.98799773,0.000121,2]
[407647561,1772606953166,-415.0,0.00012199,2]
[407647562,1772606953192,-250.0,0.000122,2]
[407647563,1772606953213,-1753.61139461,0.000122,2]
[407647573,1772607031735,-3237.09732209,0.000122,2]
[407647574,1772607031746,-250.0,0.000122,2]
[407647575,1772607031756,-500.0,0.000122,2]
[407647576,1772607031770,-500.0,0.000122,2]
[407647577,1772607031781,-151.21,0.000134,2]
[407647578,1772607031791,-1362.4,0.00013419,2]
[407647579,1772607031802,-2418.99,0.00014169,2]
[407647580,1772607031812,-507.0,0.000142,2]
[407647581,1772607031822,-300.0,0.00014999,2]
[407647582,1772607031834,-614.52527515,0.00015,2]
[407647583,1772607031845,-1502.21515879,0.00015,2]
[407647584,1772607031855,-481.67683845,0.00015,2]
[407647585,1772607031866,-1533.29220969,0.00015,2]
[407647586,1772607031877,-150.0,0.00015466,2]
[407647587,1772607031886,-1001.21552028,0.00015466,2]
[407647588,1772607031896,-25575.59883106,0.00015467,2]
[407647590,1772607031908,-5616.06626894,0.00015467,2]
[407647591,1772607031917,-166.66,0.00015564,2]
[407647592,1772607031927,-224.11554867,0.00015636,2]
[407647593,1772607031939,-2.83445133,0.00015636,2]
[407647594,1772607031950,-1000.0,0.00015781,2]
[407647595,1772607031960,-2000.0,0.0001589,2]
[407647596,1772607031969,-166.66,0.00015892,2]
[407647597,1772607031979,-200.0,0.00015916,2]
[407647598,1772607031990,-619.0,0.00016028,2]
[407647599,1772607032000,-1041.0,0.00016028,2]
[407647600,1772607032010,-1341.0,0.00016028,2]
[407647601,1772607032020,-3501.0,0.00016028,2]
[407647602,1772607032030,-1278.0,0.00016028,2]
[407647603,1772607032040,-921.0,0.00016028,2]
[407647604,1772607032049,-1212.0,0.00016028,2]
[407647606,1772607032059,-2458.0,0.00016028,2]
[407647608,1772607032069,-431.442,0.00016028,2]
[407647609,1772607032078,-150.0,0.00016037,2]
[407647610,1772607032091,-259.860044,0.00016039,2]
[407647611,1772607032101,-500.0,0.0001611,2]
[407647612,1772607032111,-1500.0,0.00016156,2]
[407647613,1772607032121,-166.66,0.00016207,2]
[407647614,1772607032130,-166.66,0.0001622,2]
[407647615,1772607032140,-420.0,0.00016416,2]
[407647616,1772607032149,-166.66,0.00016547,2]
[407647617,1772607032159,-4000.0,0.00016585,2]
[407647618,1772607032168,-166.66,0.00016742,2]
[407647619,1772607032178,-166.66,0.00016875,2]
[407647620,1772607032187,-4000.0,0.00017,2]
[407647621,1772607032196,-22448.2139691,0.00017,3]
[407647622,1772607032205,-330.62,0.0001701,2]
[407647623,1772607032215,-459.35,0.0001701,2]
[407647624,1772607032225,-166.66,0.00017203,2]
[407647625,1772607032235,-166.66,0.00017277,2]
[407647626,1772607032244,-4000.0,0.00017414,2]
[407647627,1772607032254,-240.0,0.00017601,2]
[407647628,1772607032264,-240.0,0.00017601,2]
[407647629,1772607032273,-240.0,0.00017601,2]
[407647630,1772607032283,-320.53,0.00017601,2]
[407647631,1772607032293,-258.97981749,0.0001764,2]
[407647632,1772607032303,-251.4432,0.00017654,2]
[407647633,1772607032312,-330.63849417,0.00017681,2]
[407647634,1772607032321,-459.3593869,0.00017681,2]
[407647635,1772607032331,-472.56,0.00017685,2]
[407647636,1772607032341,-2608.8225,0.000177,2]
[407647637,1772607032350,-5000.0,0.000177,2]
[407647638,1772607032360,-2500.0,0.000177,2]
[407647639,1772607032371,-151.03065447,0.00017712,2]
[407647640,1772607032380,-224.10853529,0.00017712,2]
[407647641,1772607032390,-196.06943562,0.00017712,2]
[407647642,1772607032399,-151.03065445,0.00017733,2]
[407647643,1772607032409,-196.06943558,0.00017739,2]
[407647644,1772607032418,-151.03065445,0.00017754,2]
[407647645,1772607032428,-1000.0,0.00017754,2]
[407647646,1772607032438,-196.06943558,0.00017766,2]
[407647647,1772607032447,-151.03065445,0.00017775,2]
[407647648,1772607032457,-3240.0,0.00017776,2]
[407647649,1772607032470,-152.96961451,0.0001779,2]
[407647650,1772607032480,-196.06943558,0.00017793,2]
[407647651,1772607032490,-151.03065445,0.00017796,2]
[407647652,1772607032500,-3704.0,0.000178,2]
[407647653,1772607032510,-27769.13088516,0.000178,2]
[407647654,1772607032522,-1254.41808677,0.000178,2]
[407647655,1772607032534,-3923.54357784,0.000178,2]
[407647656,1772607032546,-533.5477346,0.000178,2]
[407647657,1772607032560,-1525.88974738,0.000178,2]
[407647658,1772607032572,-3284.79972123,0.000178,2]
[407647659,1772607032587,-499.50294632,0.000178,2]
[407647660,1772607032600,-469.90281369,0.000178,2]
[407647663,1772607037802,-5000.0,0.000177,2]
[407647664,1772607037814,-406575.87428773,0.000178,2]
[407647665,1772607037826,-10039.4030832,0.000178,2]
[407647666,1772607037869,-441563.94837858,0.000178,2]
[407647667,1772607037934,-718.06097248,0.000178,2]
[407647668,1772607037946,-15476.53263328,0.000178,2]
[407647669,1772607037956,-750.97674804,0.000178,2]
[407647677,1772607040200,-5987.0,0.00016028,2]
[407647678,1772607040210,-1585614.4683837,0.000178,2]
[407647679,1772607040220,-166.66,0.00017812,2]
[407647680,1772607040230,-151.03065445,0.00017816,2]
[407647681,1772607040240,-196.06943558,0.00017819,2]
[407647682,1772607040250,-4000.0,0.00017829,2]
[407647683,1772607040259,-151.03065445,0.00017837,2]
[407647684,1772607040268,-196.06943558,0.00017846,2]
[407647685,1772607040278,-151.03065445,0.00017858,2]
[407647686,1772607040287,-196.06943558,0.00017873,2]
[407647687,1772607040297,-151.03065445,0.00017879,2]
[407647688,1772607040307,-166.67896024,0.000179,2]
[407647689,1772607040316,-182.67586505,0.000179,2]
[407647690,1772607040329,-188.1218425,0.000179,2]
[407647691,1772607040339,-193.69614937,0.000179,2]
[407647692,1772607040349,-1000.0,0.000179,2]
[407647693,1772607040358,-224.10853529,0.000179,2]
[407647694,1772607040368,-151.03065445,0.000179,2]
[407647695,1772607040377,-3495.37719004,0.000179,2]
[407647696,1772607040386,-196.06943558,0.000179,2]
[407647697,1772607040396,-225.49,0.00017957,2]
[407647698,1772607040405,-587.0,0.00017966,2]
[407647699,1772607040415,-5800.0,0.00017981,2]
[407647700,1772607040424,-5800.0,0.00017989,2]
[407647701,1772607040434,-5800.0,0.00017998,2]
[407647702,1772607040443,-306.6537944,0.00017999,2]
[407647703,1772607040453,-1705.88455753,0.00017999,2]
[407647704,1772607040462,-169.92224265,0.00017999,2]
[407647705,1772607040471,-155.0,0.00017999,2]
[407647706,1772607040481,-1412878.9965789,0.00018,2]
[407647707,1772607040529,-754.28381952,0.00018,2]
[407647708,1772607040541,-921049.80291248,0.00018,2]
[407647709,1772607040552,-46083.07634884,0.00018,2]
[407647710,1772607040563,-4913.35357007,0.00018,2]
[407647719,1772607042947,-2200.0,0.00018,2]
[407647721,1772607045780,-1506.2891659,0.00018,2]
[407647722,1772607045792,-433.13651173,0.00018,2]
[407647723,1772607045848,-1844.77165021,0.00018,2]
[407647724,1772607045859,-3547.72641833,0.00018,2]
[407647725,1772607045922,-18651.43215627,0.00018,2]
[407647726,1772607045986,-1065.16253317,0.00018,2]
[407647727,1772607045998,-9311.41776682,0.00018,2]
[407647728,1772607046054,-194088.82089755,0.00018,2]
[407647729,1772607046069,-6750.00013924,0.00018,2]
[407647731,1772607046182,-447.65077171,0.00018,2]
[407647747,1772607486398,197.39,9e-05,2]
[407647750,1772607630234,-512.0,9.949e-05,2]
[407647751,1772607630262,-300.0,9.949e-05,2]
[407647752,1772607645687,-18885.17699257,9.95e-05,2]
[407647753,1772607658219,-8330.66829808,9.95e-05,2]
[407647763,1772608157105,-269.43358283,0.000107,2]
[407647764,1772608157127,-1032.24477946,0.000108,2]
[407647765,1772608157148,-245.98799775,0.000121,2]
[407647766,1772608157171,-770.1855771,0.000122,2]
[407647767,1772608157192,-253.45935133,0.000122,2]
[407647778,1772608231863,-265.24278713,0.000122,2]
[407647780,1772608231874,-515.13819556,0.000122,2]
[407647782,1772608231883,-151.50901731,0.000122,2]
[407647783,1772608231896,-150.90522382,0.000122,2]
[407647784,1772608231906,-237.76465158,0.000122,2]
[407647785,1772608231916,-150.0,0.00013823,2]
[407647786,1772608231926,-203.63062268,0.00013823,2]
[407647787,1772608231935,-600.0,0.00013823,2]
[407647788,1772608231945,-600.0,0.00013823,2]
[407647789,1772608231955,-600.0,0.00013823,2]
[407647790,1772608231965,-600.0,0.00013823,2]
[407647791,1772608231975,-600.0,0.00013823,2]
[407647792,1772608231985,-2500.0,0.00013823,2]
[407647793,1772608231995,-576.45517679,0.00013823,2]
[407647794,1772608232004,-300.0,0.00013823,2]
[407647795,1772608232014,-300.0,0.00013823,2]
[407647796,1772608232024,-300.0,0.00013823,2]
[407647797,1772608232035,-286.50149039,0.00013823,2]
[407647798,1772608232045,-300.0,0.00013951,2]
[407647799,1772608232055,-300.0,0.00013951,2]
[407647800,1772608232066,-300.0,0.00013951,2]
[407647801,1772608232076,-300.0,0.00013951,2]
[407647802,1772608232086,-394.23772512,0.00013951,2]
[407647803,1772608232095,-200.0,0.00013951,2]
[407647804,1772608232106,-200.0,0.00013951,2]
[407647805,1772608232120,-200.0,0.00013951,2]
[407647807,1772608232129,-227.8228264,0.00013951,2]
[407647808,1772608232140,-115779.06577392,0.00014,2]
[407647809,1772608232153,-46243.90814282,0.00014,2]
[407647810,1772608232165,-58228.03694117,0.00014,2]
[407647811,1772608232175,-507.0,0.000142,2]
[407647812,1772608232186,-500.0,0.00014262,2]
[407647813,1772608232196,-3581.63,0.00014333,2]
[407647814,1772608232206,-494.24,0.00014503,2]
[407647815,1772608232216,-300.0,0.00014588,2]
[407647816,1772608232226,-3240.0,0.00014589,2]
[407647817,1772608232235,-378.04,0.00014655,2]
[407647818,1772608232249,-150.0,0.00014755,2]
[407647819,1772608232259,-181.56,0.00014939,2]
[407647820,1772608232270,-250.0,0.00015,2]
[407647821,1772608232279,-693.3919763,0.00015191,2]
[407647822,1772608232289,-624.83467626,0.000152,2]
[407647823,1772608232298,-2263.47983356,0.000152,2]
[407647824,1772608232308,-1702.31836462,0.000152,2]
[407647825,1772608232317,-1444.15725491,0.000152,2]
[407647826,1772608232327,-2725.02222824,0.000152,2]
[407647827,1772608232337,-2213.67029639,0.000152,2]
[407647828,1772608232346,-2155.19846364,0.00015228,2]
[407647829,1772608232356,-719.04747942,0.00015246,2]
[407647830,1772608232365,-18556.39332147,0.00015266,2]
[407647831,1772608232378,-94330.99570881,0.00015266,2]
[407647832,1772608232389,-2111.51762545,0.00015266,2]
[407647833,1772608232401,-817.46421683,0.00015266,2]
[407647834,1772608232412,-11260.45347406,0.00015266,2]
[407647835,1772608232424,-9412.5,0.00015266,2]
[407647836,1772608232435,-520.49846645,0.00015266,2]
[407647837,1772608232447,-461.17361602,0.00015266,2]
[407647838,1772608232459,-2075.93354033,0.00015266,2]
[407647839,1772608232474,-995.88708944,0.00015266,2]
[407647840,1772608232485,-6944.46121691,0.00015266,2]
[407647841,1772608232497,-255.51004428,0.00015266,2]
[407647842,1772608232508,-402.37528197,0.00015266,2]
[407647846,1772608238058,-4410.43099402,0.00015266,2]
[407647847,1772608238126,-828.73,0.00015266,2]
[407647848,1772608238140,-1503.20181405,0.00015266,2]
[407647863,1772608240237,-665.0,0.00015266,2]
[407647871,1772608240655,-132743.70289952,0.00015266,2]
[407647875,1772608243068,-3244.72416054,0.00015266,2]
[407647886,1772608245861,-2223.74664,0.00015266,2]
[407647887,1772608245873,-1556.35525675,0.00015266,2]
[407647888,1772608245885,-7798.74983844,0.00015266,2]
[407647889,1772608245923,-271.97471657,0.00015266,2]
[407647890,1772608245988,-31434.94149265,0.00015266,2]
[407647891,1772608245999,-5102.77501315,0.00015266,2]
[407647892,1772608246164,-13350.9732326,0.00015266,2]
[407647893,1772608246176,-910.07126,0.00015266,2]
[407647907,1772608639314,518.83642089,9.003e-05,2]
[407647917,1772609371197,-688.34,0.000105,2]
[407647918,1772609371220,-250.0,0.000113,2]
[407647919,1772609371241,-184.53834967,0.0001145,2]
[407647920,1772609371263,-1423.57529002,0.00011507,2]
[407647923,1772609432393,-592.24470998,0.00011507,2]
[407647925,1772609432403,-300.0,0.00012199,2]
[407647927,1772609432413,-1200.0,0.00012199,2]
[407647928,1772609432422,-300.0,0.00012199,2]
[407647929,1772609432433,-500.0,0.000122,2]
[407647930,1772609432442,-501.15119853,0.000122,2]
[407647931,1772609432452,-500.0,0.000122,2]
[407647932,1772609432464,-505.49393616,0.000122,2]
[407647934,1772609432473,-500.0,0.000122,2]
[407647936,1772609432483,-500.0,0.000122,2]
[407647938,1772609432495,-501.03459068,0.000122,2]
[407647940,1772609432504,-157.0,0.00013247,2]
[407647942,1772609432515,-245.0,0.00013304,2]
[407647944,1772609432528,-166.66,0.00013338,2]
[407647946,1772609432538,-265.0,0.00013362,2]
[407647948,1772609432548,-420.0,0.00013389,2]
[407647950,1772609432557,-783.62954553,0.00013419,2]
[407647957,1772609432681,-616.38608097,0.00013419,2]
[407647958,1772609432693,-279.9843735,0.00013419,2]
[407647959,1772609432703,-493.0,0.00013548,2]
[407647960,1772609432712,-198.0,0.00013549,2]
[407647961,1772609432722,-200.0,0.00013591,2]
[407647962,1772609432732,-75.4956265,0.00013619,2]
[407647963,1772609432743,-91.1643735,0.00013619,2]
[407647964,1772609432753,-201.99,0.0001375,2]
[407647965,1772609432762,-175.654304,0.00013753,2]
[407647966,1772609432772,-31.1913225,0.0001389,2]
[407647967,1772609432783,-296.369996,0.0001389,2]
[407647968,1772609432794,-993.486,0.0001389,2]
[407647969,1772609432805,-895.86861586,0.0001389,2]
[407647970,1772609432817,-2783.08406564,0.0001389,2]
[407647971,1772609432826,-417.0,0.0001389,2]
[407647972,1772609432835,-166.66,0.00013899,2]
[407647973,1772609432846,-166.67,0.00014047,2]
[407647974,1772609432855,-166.66,0.0001418,2]
[407647975,1772609432865,-507.0,0.000142,2]
[407647976,1772609432876,-506.0,0.000142,2]
[407647977,1772609432885,-505.0,0.000142,2]
[407647978,1772609432894,-1500.0,0.00014269,2]
[407647979,1772609432904,-256.04325606,0.00014361,2]
[407647980,1772609432913,-178.37466967,0.00014361,2]
[407647981,1772609432923,-606.49849575,0.00014361,2]
[407647982,1772609432934,-152.96961452,0.00014363,2]
[407647983,1772609432944,-151.0,0.0001437,2]
[407647984,1772609432953,-150.0,0.00014372,2]
[407647985,1772609432962,-493.08473435,0.00014373,2]
[407647986,1772609432971,-318.03151824,0.00014373,2]
[407647987,1772609432980,-43443.76264576,0.00014373,2]
[407647988,1772609432991,-4691.74568519,0.00014373,2]
[407647993,1772609438221,-500.0,0.00014372,2]
[407647994,1772609438231,-500.0,0.00014372,2]
[407647995,1772609438241,-500.0,0.00014372,2]
[407647996,1772609438251,-579.93991965,0.00014372,2]
[407647997,1772609438261,-500.0,0.00014372,2]
[407647998,1772609438271,-500.0,0.00014372,2]
[407647999,1772609438281,-531.3538816,0.00014372,2]
[407648000,1772609438291,-389.92804051,0.00014372,2]
[407648001,1772609438300,-500.0,0.00014372,2]
[407648002,1772609438310,-967.39189646,0.00014372,2]
[407648003,1772609438320,-500.0,0.00014372,2]
[407648004,1772609438329,-967.39189646,0.00014372,2]
[407648005,1772609438339,-212.79771969,0.00014372,2]
[407648006,1772609438349,-500.0,0.00014372,2]
[407648007,1772609438359,-500.0,0.00014372,2]
[407648008,1772609438369,-967.39189646,0.00014372,2]
[407648009,1772609438380,-500.0,0.00014372,2]
[407648010,1772609438389,-967.39189646,0.00014372,2]
[407648011,1772609438399,-500.0,0.00014372,2]
[407648012,1772609438409,-967.39189646,0.00014372,2]
[407648013,1772609438419,-500.0,0.00014372,2]
[407648014,1772609438428,-967.39189646,0.00014372,2]
[407648015,1772609438438,-327.40527991,0.00014372,2]
[407648016,1772609438449,-967.39189646,0.00014372,2]
[407648017,1772609438462,-967.39189646,0.00014372,2]
[407648018,1772609438472,-500.0,0.00014372,2]
[407648019,1772609438481,-967.39189646,0.00014372,2]
[407648020,1772609438491,-967.39189646,0.00014372,2]
[407648021,1772609438503,-967.39189646,0.00014372,2]
[407648022,1772609438513,-967.39189646,0.00014372,2]
[407648024,1772609438523,-967.39189646,0.00014372,2]
[407648026,1772609438533,-967.39189646,0.00014372,2]
[407648028,1772609438543,-691888.31931462,0.00014373,2]
[407648031,1772609438557,-4897.49151961,0.00014373,2]
[407648033,1772609438569,-18722.78875595,0.00014373,2]
[407648039,1772609438614,-107.03165268,0.00014372,2]
[407648041,1772609438626,-860.36024378,0.00014372,2]
[407648043,1772609438635,-967.39189646,0.00014372,2]
[407648045,1772609438645,-967.39189646,0.00014372,2]
[407648047,1772609438655,-63353.68631878,0.00014373,2]
[407648050,1772609438671,-967.39189646,0.00014372,2]
[407648052,1772609438684,-470.28182801,0.00014373,2]
[407648084,1772609440400,-967.39189646,0.00014372,2]
[407648085,1772609440410,-967.39189646,0.00014372,2]
[407648086,1772609440419,-270.93116341,0.00014372,2]
[407648087,1772609440573,-696.46073305,0.00014372,2]
[407648088,1772609440582,-110.97772895,0.00014372,2]
[407648089,1772609440735,-856.41416751,0.00014372,2]
[407648090,1772609440745,-967.39189646,0.00014372,2]
[407648091,1772609440754,-967.39189646,0.00014372,2]
[407648092,1772609440764,-967.39189646,0.00014372,2]
[407648093,1772609440774,-967.39189646,0.00014372,2]
[407648094,1772609440787,-967.39189646,0.00014372,2]
[407648095,1772609440797,-967.39189646,0.00014372,2]
[407648096,1772609440806,-967.39189646,0.00014372,2]
[407648097,1772609440815,-967.39189646,0.00014372,2]
[407648098,1772609440824,-967.39189646,0.00014372,2]
[407648099,1772609440834,-967.39189646,0.00014372,2]
[407648101,1772609440843,-967.39189646,0.00014372,2]
[407648103,1772609440853,-967.39189646,0.00014372,2]
[407648104,1772609440862,-967.39189646,0.00014372,2]
[407648106,1772609440871,-967.39189646,0.00014372,2]
[407648108,1772609440881,-967.39189646,0.00014372,2]
[407648110,1772609440889,-967.39189646,0.00014372,2]
[407648111,1772609440899,-967.39189646,0.00014372,2]
[407648112,1772609440908,-967.39189646,0.00014372,2]
[407648113,1772609440918,-967.39189646,0.00014372,2]
[407648114,1772609440927,-967.39189646,0.00014372,2]
[407648115,1772609440936,-967.39189646,0.00014372,2]
[407648116,1772609440946,-967.39189646,0.00014372,2]
[407648117,1772609440956,-967.39189646,0.00014372,2]
[407648118,1772609440965,-967.39189646,0.00014372,2]
[407648119,1772609440975,-967.39189646,0.00014372,2]
[407648120,1772609440985,-967.39189646,0.00014372,2]
[407648121,1772609440995,-967.39189646,0.00014372,2]
[407648122,1772609441005,-967.39189646,0.00014372,2]
[407648123,1772609441014,-967.39189646,0.00014372,2]
[407648125,1772609441024,-967.39189646,0.00014372,2]
[407648126,1772609441033,-967.39189646,0.00014372,2]
[407648127,1772609441043,-967.39189646,0.00014372,2]
[407648128,1772609441053,-967.39189646,0.00014372,2]
[407648129,1772609441063,-967.39189646,0.00014372,2]
[407648130,1772609441074,-967.39189646,0.00014372,2]
[407648131,1772609441084,-967.39189646,0.00014372,2]
[407648132,1772609441095,-967.39189646,0.00014372,2]
[407648133,1772609441106,-856.48192213,0.00014372,2]
[407648134,1772609441122,-110.90997433,0.00014372,2]
[407648135,1772609441132,-967.39189646,0.00014372,2]
[407648136,1772609441142,-583.85628599,0.00014373,2]
[407648142,1772609443557,-687.00434695,0.00014373,2]
[407648159,1772609446665,-16301.74469215,0.00014373,2]
[407648167,1772609592966,4299.86,0.000172,120]
[407648168,1772609793425,2637.0,0.00014003,90]
[407648169,1772609846794,500.0,9.003e-05,2]
[407648171,1772610139679,828.73922611,9.003e-05,2]
[407648172,1772610140091,-192.64,0.00010622,2]
[407648173,1772610140114,-370.17853068,0.00011684,2]
[407648174,1772610140137,-248.0,0.00012,2]
[407648175,1772610140159,-500.0,0.00012,2]
[407648176,1772610140185,-500.0,0.00012,2]
[407648177,1772610140207,-500.0,0.00012,2]
[407648178,1772610140230,-500.0,0.00012,2]
[407648179,1772610140252,-500.0,0.00012,2]
[407648180,1772610140274,-574.24401555,0.00012,2]
[407648181,1772610140296,-598.73765731,0.00012,2]
[407648182,1772610140319,-500.0,0.00012,2]
[407648183,1772610140340,-371.55397753,0.00012,2]
[407648184,1772610140363,-300.0,0.00012708,2]
[407648185,1772610140387,-1200.0,0.00012709,2]
[407648186,1772610140410,-184.53834967,0.0001271,2]
[407648187,1772610140434,-250.0,0.0001281,2]
[407648188,1772610140458,-3362.33,0.00013021,2]
[407648189,1772610140481,-3531.11,0.00013074,2]